fUSD/lending_fUSD_20241122
["ID","MTS","AMOUNT","RATE_DAILY","PERIOD"]
[342973681,1732239034431,-150.97,0.0005999,120]
[342973682,1732239034440,-500.0,0.00059997,120]
[342973683,1732239034449,-500.0,0.00059997,120]
[342973684,1732239034459,-1552.41,0.00059998,120]
[342973685,1732239034469,-500.0,0.00059998,120]
[342973686,1732239034479,-500.0,0.00059998,120]
[342973687,1732239034489,-578.18,0.00059998,120]
[342973688,1732239034499,-500.0,0.00059998,120]
[342973689,1732239034509,-500.0,0.00059998,120]
[342973690,1732239034519,-500.0,0.00059999,120]
[342973691,1732239034529,-500.0,0.00059999,120]
[342973692,1732239034538,-500.0,0.00059999,120]
[342973693,1732239034547,-500.0,0.00059999,120]
[342973694,1732239034557,-500.0,0.00059999,120]
[342973695,1732239034567,-500.0,0.00059999,120]
[342973696,1732239034576,-500.0,0.00059999,120]
[342973697,1732239034586,-500.0,0.00059999,120]
[342973698,1732239034595,-500.0,0.00059999,120]
[342973699,1732239034605,-500.0,0.00059999,120]
[342973700,1732239034614,-500.0,0.00059999,120]
[342973701,1732239034624,-500.0,0.00059999,120]
[342973702,1732239034633,-500.0,0.00059999,120]
[342973703,1732239034643,-500.0,0.00059999,120]
[342973704,1732239034652,-500.0,0.00059999,120]
[342973705,1732239034662,-500.0,0.00059999,120]
[342973706,1732239034672,-1000.0,0.00059999,30]
[342973707,1732239034682,-500.0,0.00059999,120]
[342973708,1732239034691,-500.0,0.00059999,120]
[342973709,1732239034700,-1000.0,0.00059999,120]
[342973710,1732239034710,-1552.41,0.00059999,120]
[342973711,1732239034720,-1552.41,0.00059999,120]
[342973712,1732239034729,-1552.41,0.00059999,120]
[342973713,1732239034738,-1552.41,0.00059999,120]
[342973714,1732239034748,-1552.41,0.00059999,120]
[342973715,1732239034757,-1552.41,0.00059999,120]
[342973716,1732239034766,-1552.41,0.00059999,120]
[342973717,1732239034776,-1552.41,0.00059999,120]
[342973718,1732239034785,-1552.41,0.00059999,120]
[342973719,1732239034795,-1552.41,0.00059999,120]
[342973720,1732239034804,-1552.41,0.00059999,120]
[342973721,1732239034813,-355.91950983,0.00059999,120]
[342973722,1732239034822,-1019.57,0.00059999,120]
[342973723,1732239034831,-1019.57,0.00059999,120]
[342973724,1732239034840,-1019.57,0.00059999,120]
[342973725,1732239034850,-1019.57,0.00059999,120]
[342973726,1732239034859,-1019.57,0.00059999,120]
[342973727,1732239034868,-1019.57,0.00059999,120]
[342973728,1732239034878,-1019.57,0.00059999,120]
[342973729,1732239034887,-1019.57,0.00059999,120]
[342973730,1732239034897,-1019.57,0.00059999,120]
[342973731,1732239034906,-1019.57,0.00059999,120]
[342973732,1732239034915,-1019.57,0.00059999,120]
[342973733,1732239035041,-500.0,0.00059999,30]
[342973734,1732239035052,-500.0,0.00059999,30]
[342973735,1732239035062,-500.0,0.00059999,30]
[342973736,1732239035071,-500.0042342,0.00059999,30]
[342973737,1732239035081,-295.65,0.00059999,120]
[342973738,1732239035091,-500.0,0.00059999,120]
[342973739,1732239035100,-500.0,0.00059999,120]
[342973740,1732239035109,-500.0,0.00059999,120]
[342973741,1732239035119,-500.0,0.00059999,120]
[342973742,1732239035129,-500.0,0.00059999,120]
[342973743,1732239035138,-500.0,0.00059999,120]
[342973744,1732239035155,-253.4840293,0.00059999,120]
[342973745,1732239035167,-361.95812874,0.00059999,120]
[342973746,1732239035176,-132.03652603,0.00059999,120]
[342973747,1732239035190,-446.14347397,0.00059999,120]
[342973748,1732239035202,-578.18,0.00059999,120]
[342973749,1732239035212,-297.82136522,0.00059999,120]
[342973750,1732239035231,-280.35863478,0.00059999,120]
[342973751,1732239035241,-578.18,0.00059999,120]
[342973752,1732239035251,-578.18,0.00059999,120]
[342973753,1732239035259,-578.18,0.00059999,120]
[342973754,1732239035269,-578.18,0.00059999,120]
[342973755,1732239035278,-578.18,0.00059999,120]
[342973756,1732239035287,-578.18,0.00059999,120]
[342973757,1732239035296,-578.18,0.00059999,120]
[342973758,1732239035306,-500.0,0.00059999,120]
[342973759,1732239035315,-500.0,0.00059999,120]
[342973760,1732239035324,-500.0,0.00059999,120]
[342973761,1732239035334,-500.0,0.00059999,120]
[342973762,1732239035343,-500.0,0.00059999,120]
[342973763,1732239035352,-500.0,0.00059999,120]
[342973764,1732239035362,-500.0,0.00059999,120]
[342973765,1732239035371,-500.0,0.00059999,120]
[342973766,1732239035380,-500.0,0.00059999,120]
[342973767,1732239035389,-500.0,0.00059999,120]
[342973768,1732239035398,-500.0,0.00059999,120]
[342973769,1732239035407,-500.0,0.00059999,120]
[342973770,1732239035417,-500.0,0.00059999,120]
[342973771,1732239035427,-500.0,0.00059999,120]
[342973772,1732239035437,-635.27,0.00059999,120]
[342973773,1732239035447,-500.0,0.00059999,120]
[342973774,1732239035456,-500.0,0.00059999,120]
[342973775,1732239035468,-500.0,0.00059999,120]
[342973776,1732239035482,-500.0,0.00059999,120]
[342973777,1732239035492,-500.0,0.00059999,120]
[342973778,1732239035502,-500.0,0.00059999,120]
[342973779,1732239035511,-500.0,0.00059999,120]
[342973780,1732239035520,-579.74,0.00059999,120]
[342973781,1732239035530,-500.0,0.00059999,120]
[342973782,1732239035539,-579.74,0.00059999,120]
[342973783,1732239035548,-500.0,0.00059999,120]
[342973784,1732239035557,-579.74,0.00059999,120]
[342973785,1732239035566,-500.0,0.00059999,120]
[342973786,1732239035575,-579.74,0.00059999,120]
[342973787,1732239035585,-500.0,0.00059999,120]
[342973788,1732239035594,-579.74,0.00059999,120]
[342973789,1732239035603,-579.74,0.00059999,120]
[342973790,1732239035612,-579.74,0.00059999,120]
[342973791,1732239035622,-579.74,0.00059999,120]
[342973792,1732239035631,-579.74,0.00059999,120]
[342973793,1732239035641,-579.74,0.00059999,120]
[342973794,1732239035650,-579.74,0.00059999,120]
[342973795,1732239035659,-500.0,0.00059999,120]
[342973796,1732239035668,-395.87,0.00059999,120]
[342973797,1732239035677,-500.0,0.00059999,120]
[342973798,1732239035686,-336.55,0.00059999,120]
[342973799,1732239035695,-807.81,0.00059999,120]
[342973800,1732239035704,-807.81,0.00059999,120]
[342973801,1732239035714,-807.81,0.00059999,120]
[342973802,1732239035727,-807.81,0.00059999,120]
[342973803,1732239035736,-807.81,0.00059999,120]
[342973804,1732239035745,-807.81,0.00059999,120]
[342973805,1732239035755,-807.81,0.00059999,120]
[342973806,1732239035764,-807.81,0.00059999,120]
[342973807,1732239035772,-807.81,0.00059999,120]
[342973808,1732239035782,-807.81,0.00059999,120]
[342973809,1732239035791,-807.81,0.00059999,120]
[342973810,1732239035800,-569.56876107,0.00059999,120]
[342973811,1732239035809,-500.0,0.00059999,120]
[342973812,1732239035819,-500.0,0.00059999,120]
[342973813,1732239035828,-191.49,0.00059999,120]
[342973814,1732239035838,-195.7684567,0.00059999,120]
[342973815,1732239035847,-295.33184452,0.00059999,120]
[342973816,1732239035857,-500.0,0.00059999,120]
[342973817,1732239035866,-601.25362383,0.00059999,120]
[342973818,1732239035875,-500.0,0.00059999,120]
[342973819,1732239035884,-233.98768489,0.00059999,120]
[342973820,1732239035894,-197079.81861264,0.0006,36]
[342973821,1732239035906,-118193.69029757,0.0006,36]
[342973822,1732239035917,-8425.98719866,0.0006,36]
[342973823,1732239035927,-553.14921322,0.0006,61]
[342973824,1732239035936,-3040.43352853,0.0006,120]
[342973825,1732239035947,-44492.74508031,0.0006,120]
[342973826,1732239035957,-10000.0,0.0006,120]
[342973827,1732239035969,-550.0,0.0006,120]
[342973828,1732239035978,-27896.60405044,0.0006,120]
[342973829,1732239035989,-5264.10785967,0.0006,120]
[342973830,1732239036000,-493.8,0.0006,120]
[342973831,1732239038267,-500.0,0.00050833,120]
[342973834,1732239038277,-179.74064335,0.00057534,120]
[342973836,1732239038286,-190.70920107,0.000588,120]
[342973838,1732239038296,-2500.0,0.000599,120]
[342973839,1732239038304,-500.0,0.00059998,120]
[342973840,1732239038313,-500.0,0.00059999,120]
[342973841,1732239038323,-500.0,0.00059999,120]
[342973842,1732239038331,-500.0,0.00059999,120]
[342973843,1732239038341,-500.0,0.00059999,120]
[342973844,1732239038350,-500.0,0.00059999,120]
[342973845,1732239038359,-500.0,0.00059999,120]
[342973846,1732239038369,-612.67277272,0.00059999,120]
[342973847,1732239038379,-288.42413603,0.00059999,120]
[342973848,1732239038388,-166345.48808989,0.0006,120]
[342973849,1732239038398,-1414.00814223,0.0006,120]
[342973850,1732239038408,-5112.0,0.0006,120]
[342973851,1732239038417,-6582.12480266,0.0006,120]
[342973852,1732239038426,-700.47338451,0.0006,120]
[342973853,1732239038435,-1000.0,0.0006,2]
[342973854,1732239038446,-4188.50805928,0.0006,6]
[342973855,1732239038456,-1000.0,0.0006,120]
[342973856,1732239038465,-1787.68176823,0.0006,5]
[342973857,1732239038477,-681.8521095,0.0006,30]
[342973858,1732239038486,-500.0,0.0006,30]
[342973859,1732239038495,-500.0,0.0006,30]
[342973860,1732239038504,-500.0,0.0006,30]
[342973861,1732239038514,-500.0,0.0006,30]
[342973862,1732239038523,-500.0,0.0006,30]
[342973863,1732239038533,-600.0,0.0006,120]
[342973864,1732239038543,-500.0,0.0006,30]
[342973865,1732239038553,-744.63188096,0.0006,120]
[342973866,1732239038562,-500.0,0.0006,120]
[342973867,1732239038572,-1000.0,0.0006,120]
[342973868,1732239038582,-26935.43299394,0.0006,120]
[342973869,1732239038592,-200.0,0.0006,2]
[342973870,1732239038602,-82137.32129651,0.0006,120]
[342973871,1732239038614,-357.864804,0.0006,120]
[342973872,1732239038625,-32871.5305,0.0006,120]
[342973873,1732239038637,-257.82237684,0.0006,120]
[342973874,1732239038648,-3065.34814042,0.0006,120]
[342973875,1732239038659,-742.11629914,0.0006,120]
[342973876,1732239038676,-2708.45903353,0.0006,120]
[342973877,1732239038687,-9162.93853027,0.0006,120]
[342973878,1732239038699,-214994.3024767,0.0006,120]
[342973879,1732239038708,-79639.26168701,0.0006,30]
[342973961,1732239040542,-566.18571674,0.0006,30]
[342973962,1732239040554,-9096.64373114,0.0006,30]
[342973963,1732239040566,-8947.21879473,0.0006,30]
[342973964,1732239040577,-8943.78386462,0.0006,30]
[342973965,1732239040590,-9077.54866152,0.0006,30]
[342973966,1732239040602,-8943.84023489,0.0006,30]
[342973967,1732239040613,-369.86101097,0.0006,30]
[342973968,1732239040624,-875.81996469,0.0006,30]
[342973969,1732239040635,-686.1,0.0006,30]
[342973970,1732239040646,-1202.799999,0.0006,30]
[342973971,1732239040743,-500.0,0.00052335,120]
[342973972,1732239040752,-4.39036884,0.0006,30]
[342973973,1732239040763,-510.02877424,0.0006,30]
[342973974,1732239040774,-2942.095499,0.0006,30]
[342973975,1732239040785,-1377.6297589,0.0006,30]
[342973976,1732239040796,-1338.534589,0.0006,30]
[342973977,1732239040807,-475.42840009,0.0006,30]
[342973978,1732239040817,-450.7507749,0.0006,30]
[342973979,1732239040828,-450.0,0.0006,30]
[342973980,1732239040840,-2171.9723336,0.0006,30]
[342973985,1732239043525,-379.76106984,0.00059999,120]
[342973986,1732239043535,-46048.27477074,0.0006,30]
[342973987,1732239043549,-1231.55202045,0.0006,30]
[342973988,1732239043699,-500.0,0.00054,120]
[342973989,1732239043709,-8526.6,0.0006,30]
[342973990,1732239043776,-53.85283391,0.0006,30]
[342973991,1732239043788,-19926.00028477,0.0006,30]
[342973992,1732239043883,-6442.78728612,0.0006,30]
[342973995,1732239046394,-153.0,0.00051065,31]
[342973996,1732239046403,-532.65342,0.0006,30]
[342973997,1732239046418,-378.37294716,0.0006,30]
[342973999,1732239046430,-813.5,0.0006,30]
[342974001,1732239046440,-1915.44941856,0.0006,30]
[342974002,1732239046451,-6725.55733571,0.0006,30]
[342974003,1732239046587,-500.0,0.00054335,120]
[342974004,1732239046596,-24582.86109472,0.0006,30]
[342974005,1732239046607,-33282.70631421,0.0006,30]
[342974006,1732239046619,-459.7430005,0.0006,30]
[342974007,1732239046630,-2641.0,0.0006,30]
[342974008,1732239046641,-777.2687132,0.0006,30]
[342974009,1732239046741,-304.61310295,0.0006,30]
[342974010,1732239046752,-966.89800954,0.0006,30]
[342974011,1732239046763,-6320.41528358,0.0006,30]
[342974012,1732239046772,-1566.95093932,0.0006,4]
[342974013,1732239046781,-720.14662751,0.0006,120]
[342974014,1732239046790,-134.17180148,0.0006,120]
[342974015,1732239046801,-495.5767848,0.0006,120]
[342974016,1732239046810,-1497.5463415,0.0006,30]
[342974017,1732239046819,-1301.66793746,0.0006,120]
[342974018,1732239046829,-349.30188246,0.0006,120]
[342974019,1732239046840,-619.190633,0.0006,120]
[342974020,1732239046849,-9008.59310907,0.0006,120]
[342974021,1732239046859,-1628.87111244,0.0006,120]
[342974022,1732239046868,-1000.85688027,0.0006,30]
[342974023,1732239046878,-97212.73680522,0.0006,61]
[342974024,1732239046888,-2201.4,0.0006,61]
[342974025,1732239046899,-8512.82883593,0.0006,61]
[342974043,1732240154094,-157.77,0.00015342,2]
[342974044,1732240154116,-155.13,0.00015342,2]
[342974045,1732240154139,-245.24243543,0.0003,2]
[342974089,1732240232472,-15.75756457,0.0003,2]
[342974090,1732240232481,-250.0,0.00031,2]
[342974092,1732240232491,-357.87094894,0.0003151,30]
[342974094,1732240232506,-151.2194222,0.0003297,2]
[342974097,1732240232515,-300.0,0.00033,2]
[342974100,1732240232525,-312.0,0.000333,2]
[342974103,1732240232535,-486.2414811,0.00034448,2]
[342974106,1732240232546,-150.0,0.00034548,10]
[342974109,1732240232557,-486.24148109,0.000349,2]
[342974111,1732240232566,-58.42201139,0.00034986,2]
[342974113,1732240232579,-91.57798861,0.00034986,2]
[342974115,1732240232591,-350.0,0.00035,2]
[342974117,1732240232600,-1341.17,0.00035,2]
[342974118,1732240232610,-299.99,0.00035,30]
[342974120,1732240232620,-1984.125178,0.00036715,2]
[342974122,1732240232629,-400.0,0.00036899,2]
[342974123,1732240232639,-262.28,0.000369,2]
[342974125,1732240232648,-150.99,0.000369,2]
[342974126,1732240232658,-1574.5839903,0.000369,10]
[342974127,1732240232669,-619.19679762,0.000369,10]
[342974128,1732240232731,-3419.86642357,0.000369,10]
[342974129,1732240232742,-455.85087134,0.000369,10]
[342974130,1732240232753,-416.54191717,0.000369,10]
[342974131,1732240232763,-400.0,0.00037,2]
[342974132,1732240232772,-481.2286,0.00037562,30]
[342974133,1732240232781,-585.78521487,0.00037562,120]
[342974134,1732240232790,-289.46811447,0.00037562,120]
[342974135,1732240232799,-450.0,0.00039,2]
[342974136,1732240232808,-153.0,0.00039486,4]
[342974137,1732240232817,-560.0,0.00039486,5]
[342974138,1732240232827,-157.77,0.00039671,2]
[342974139,1732240232836,-167.95271866,0.000422,2]
[342974140,1732240232848,-70.13728134,0.000422,2]
[342974141,1732240232857,-548.28,0.00045,120]
[342974142,1732240232866,-150.0,0.00045589,10]
[342974143,1732240232876,-155.926,0.0004763,120]
[342974144,1732240232885,-4846.63,0.00048673,60]
[342974145,1732240232895,-500.0,0.00049406,2]
[342974146,1732240232903,-1000.0,0.00049427,120]
[342974147,1732240232912,-377.62,0.00049491,120]
[342974148,1732240232921,-155.44,0.00049625,120]
[342974149,1732240232931,-498.40615144,0.00049696,30]
[342974150,1732240232939,-158.74,0.00049766,120]
[342974151,1732240232948,-714.087,0.00049799,87]
[342974152,1732240232959,-178.98589896,0.00049799,87]
[342974153,1732240232968,-5828.24959688,0.000498,120]
[342974154,1732240232978,-10664.80252923,0.000498,120]
[342974155,1732240232987,-781.32,0.00049924,120]
[342974156,1732240232996,-151.58079827,0.0004996,40]
[342974157,1732240233005,-600.0,0.0005,2]
[342974158,1732240233014,-634.222,0.0005,2]
[342974159,1732240233024,-1559.0,0.0005,12]
[342974160,1732240233033,-161.11777853,0.0005,120]
[342974161,1732240233043,-250.0,0.00050638,120]
[342974162,1732240233052,-306.72,0.00050749,2]
[342974165,1732240233062,-250.0,0.00050764,120]
[342974166,1732240233071,-505.10106165,0.0005116,2]
[342974169,1732240233080,-500.45360806,0.000515,10]
[342974171,1732240233090,-599.431,0.00052121,120]
[342974172,1732240233100,-567.94677297,0.00052281,14]
[342974173,1732240233109,-567.94677297,0.00052316,14]
[342974174,1732240233119,-567.94677297,0.00052348,14]
[342974175,1732240233128,-567.94677297,0.00052458,14]
[342974176,1732240233137,-1189.84503485,0.00052949,2]
[342974177,1732240233147,-23900.0,0.00052959,2]
[342974178,1732240233156,-306.72,0.00053013,2]
[342974179,1732240233165,-304.86,0.00053054,2]
[342974180,1732240233174,-279.961,0.00053125,120]
[342974181,1732240233184,-279.962,0.00053125,120]
[342974182,1732240233194,-279.962,0.00053125,120]
[342974183,1732240233203,-279.962,0.00053125,120]
[342974184,1732240233215,-279.962,0.00053125,120]
[342974185,1732240233224,-151.84,0.00053403,120]
[342974186,1732240233233,-1234.01,0.00053681,2]
[342974187,1732240233242,-510.6427,0.000538,2]
[342974188,1732240233251,-155.44,0.00054089,120]
[342974189,1732240233260,-155.925,0.0005437,120]
[342974190,1732240233270,-175.82687311,0.00055,100]
[342974191,1732240233279,-943.2050009,0.00055,56]
[342974192,1732240233289,-306.72,0.00055276,2]
[342974193,1732240233298,-544.33,0.00055501,120]
[342974194,1732240233307,-1000.0,0.00055605,120]
[342974195,1732240233316,-2029.02865631,0.00055643,120]
[342974196,1732240233325,-200.0,0.0005597,120]
[342974197,1732240233334,-1800.0,0.00056,57]
[342974198,1732240233343,-781.32,0.00056164,120]
[342974199,1732240233352,-207.4,0.00056856,2]
[342974200,1732240233362,-1800.0,0.00057,58]
[342974201,1732240233372,-552.44,0.00057534,120]
[342974202,1732240233382,-582.16,0.00057534,120]
[342974203,1732240233392,-582.16,0.00057534,120]
[342974204,1732240233402,-500.0,0.00057534,120]
[342974205,1732240233412,-500.0,0.00057534,120]
[342974206,1732240233422,-501.08754887,0.00057534,120]
[342974207,1732240233432,-501.25246467,0.00057534,120]
[342974208,1732240233442,-502.06256067,0.00057534,120]
[342974209,1732240233451,-500.0,0.00057534,120]
[342974210,1732240233464,-563.04304228,0.00057534,120]
[342974211,1732240233474,-518.01759178,0.00057534,120]
[342974212,1732240233484,-531.31446816,0.00057534,120]
[342974213,1732240233495,-210.56,0.00057534,90]
[342974214,1732240233505,-306.72,0.0005754,2]
[342974215,1732240233516,-194.0,0.00057636,30]
[342974216,1732240233526,-1800.0,0.00058,59]
[342974217,1732240233536,-182.24227877,0.00058,120]
[342974218,1732240233547,-155.44,0.00058552,120]
[342974219,1732240233556,-880.03662322,0.00058805,120]
[342974220,1732240233566,-3000.0,0.000589,90]
[342974221,1732240233576,-1008.0,0.000589,7]
[342974222,1732240233587,-1800.0,0.00059,60]
[342974223,1732240233597,-50000.0,0.000592,120]
[342974224,1732240233607,-8669.84387298,0.000592,15]
[342974225,1732240233616,-2367.6731,0.000593,2]
[342974226,1732240233625,-152.1326,0.000593,2]
[342974227,1732240233635,-50000.0,0.000594,120]
[342974228,1732240233644,-1000.0,0.000595,2]
[342974229,1732240233654,-2500.0,0.000595,2]
[342974230,1732240233663,-200.0,0.00059532,120]
[342974231,1732240233673,-200.0,0.00059542,120]
[342974232,1732240233682,-272.52602308,0.00059599,120]
[342974233,1732240233691,-500.0,0.00059599,120]
[342974234,1732240233701,-431.66139737,0.00059599,120]
[342974235,1732240233713,-210.47687465,0.00059599,120]
[342974236,1732240233722,-500.0,0.00059599,120]
[342974237,1732240233731,-500.0,0.00059599,120]
[342974238,1732240233741,-429.62252035,0.00059599,120]
[342974239,1732240233750,-1000.0,0.00059599,120]
[342974240,1732240233760,-50000.0,0.000596,120]
[342974241,1732240233770,-302.37906889,0.00059624,120]
[342974242,1732240233780,-302.37906889,0.00059654,120]
[342974243,1732240233790,-200.0,0.00059684,120]
[342974244,1732240233799,-302.37906889,0.00059731,120]
[342974245,1732240233809,-200.0,0.00059739,120]
[342974246,1732240233819,-200.0,0.00059759,120]
[342974247,1732240233828,-582.16,0.00059798,120]
[342974248,1732240233837,-500.0,0.00059798,120]
[342974249,1732240233846,-503.04270522,0.00059799,120]
[342974250,1732240233856,-502.65128779,0.00059799,120]
[342974251,1732240233865,-500.0,0.00059799,120]
[342974252,1732240233875,-248.7909453,0.00059799,120]
[342974253,1732240233885,-254.51015066,0.00059799,120]
[342974254,1732240233894,-180.22823063,0.00059799,120]
[342974255,1732240233903,-500.0,0.00059799,120]
[342974256,1732240233912,-238.79916532,0.00059799,120]
[342974257,1732240233921,-500.0,0.00059799,120]
[342974258,1732240233931,-500.66049389,0.00059799,120]
[342974259,1732240233940,-501.45724107,0.00059799,120]
[342974260,1732240233949,-500.0,0.00059799,120]
[342974261,1732240233962,-154.32109883,0.00059799,120]
[342974262,1732240233971,-505.35244138,0.00059799,120]
[342974263,1732240233981,-500.0,0.00059799,120]
[342974264,1732240233991,-343.78473674,0.00059799,120]
[342974265,1732240234000,-184.3506447,0.00059799,120]
[342974266,1732240234009,-243.14261707,0.00059799,120]
[342974267,1732240234019,-374.0,0.000598,120]
[342974268,1732240234028,-50000.0,0.000598,120]
[342974269,1732240234037,-306.72,0.00059804,2]
[342974270,1732240234047,-303.7308,0.00059899,2]
[342974271,1732240234055,-274.20802558,0.00059899,31]
[342974272,1732240234065,-500.0,0.000599,2]
[342974273,1732240234074,-66980.3666,0.000599,2]
[342974274,1732240234084,-1372.7572,0.000599,2]
[342974275,1732240234093,-7744.0462,0.000599,2]
[342974276,1732240234103,-2500.0,0.000599,120]
[342974277,1732240234112,-422.68377299,0.000599,39]
[342974278,1732240234121,-1240.8820215,0.000599,41]
[342974279,1732240234131,-10518.96135393,0.000599,120]
[342974280,1732240234140,-215.79,0.0005991,120]
[342974281,1732240234149,-200.0,0.0005993,120]
[342974282,1732240234159,-200.0,0.0005995,120]
[342974283,1732240234168,-251.68818641,0.0005996,120]
[342974284,1732240234179,-150.5,0.0005999,30]
[342974285,1732240234188,-200.0,0.0005999,120]
[342974286,1732240234198,-150.98,0.0005999,120]
[342974287,1732240234209,-150.98,0.0005999,120]
[342974288,1732240234219,-150.98,0.0005999,120]
[342974289,1732240234229,-150.98,0.0005999,120]
[342974290,1732240234239,-150.98,0.0005999,120]
[342974291,1732240234248,-150.98,0.0005999,120]
[342974292,1732240234258,-150.98,0.0005999,120]
[342974293,1732240234268,-1778.5167655,0.00059992,2]
[342974294,1732240234278,-552.44,0.00059997,120]
[342974295,1732240234289,-500.0,0.00059997,120]
[342974296,1732240234299,-186.15965148,0.00059998,120]
[342974297,1732240234308,-231.70069916,0.00059999,30]
[342974298,1732240234316,-1000.0,0.00059999,120]
[342974299,1732240234326,-552.44,0.00059999,120]
[342974300,1732240234335,-552.44,0.00059999,120]
[342974301,1732240234344,-552.44,0.00059999,120]
[342974302,1732240234354,-552.44,0.00059999,120]
[342974303,1732240234364,-552.44,0.00059999,120]
[342974304,1732240234374,-552.44,0.00059999,120]
[342974305,1732240234385,-552.44,0.00059999,120]
[342974306,1732240234395,-552.44,0.00059999,120]
[342974307,1732240234405,-552.44,0.00059999,120]
[342974308,1732240234414,-552.44,0.00059999,120]
[342974309,1732240234424,-582.16,0.00059999,120]
[342974310,1732240234434,-582.16,0.00059999,120]
[342974311,1732240234444,-582.16,0.00059999,120]
[342974312,1732240234454,-582.16,0.00059999,120]
[342974313,1732240234468,-582.16,0.00059999,120]
[342974314,1732240234479,-582.16,0.00059999,120]
[342974315,1732240234488,-582.16,0.00059999,120]
[342974316,1732240234501,-582.16,0.00059999,120]
[342974317,1732240234511,-582.16,0.00059999,120]
[342974318,1732240234519,-582.16,0.00059999,120]
[342974319,1732240234528,-582.16,0.00059999,120]
[342974320,1732240234538,-500.0,0.00059999,120]
[342974321,1732240234548,-500.0,0.00059999,120]
[342974322,1732240234557,-500.0,0.00059999,120]
[342974323,1732240234676,-500.0,0.00059999,120]
[342974324,1732240234686,-500.0,0.00059999,120]
[342974325,1732240234696,-503.84866562,0.00059999,120]
[342974326,1732240234705,-500.0,0.00059999,120]
[342974327,1732240234718,-500.0,0.00059999,120]
[342974328,1732240234728,-500.0,0.00059999,120]
[342974329,1732240234737,-245.64880162,0.00059999,120]
[342974330,1732240234747,-500.0,0.00059999,120]
[342974331,1732240234756,-287.63852087,0.00059999,120]
[342974332,1732240234765,-500.0,0.00059999,120]
[342974333,1732240234775,-293.59088225,0.00059999,120]
[342974334,1732240234784,-500.0,0.00059999,120]
[342974335,1732240234794,-585.72963122,0.00059999,120]
[342974336,1732240234804,-370.56193574,0.00059999,120]
[342974337,1732240234813,-391.65903344,0.00059999,2]
[342974338,1732240234822,-523.30513843,0.00059999,120]
[342974339,1732240234831,-157.70168644,0.00059999,120]
[342974340,1732240234840,-500.0,0.00059999,7]
[342974341,1732240234850,-500.0,0.00059999,7]
[342974342,1732240234859,-500.0,0.00059999,7]
[342974343,1732240234868,-500.0,0.00059999,7]
[342974344,1732240234878,-500.0,0.00059999,7]
[342974345,1732240234887,-500.0,0.00059999,120]
[342974346,1732240234896,-345.06727625,0.00059999,120]
[342974347,1732240234905,-500.0,0.00059999,120]
[342974348,1732240234914,-500.0,0.00059999,120]
[342974349,1732240234924,-500.0,0.00059999,120]
[342974350,1732240234933,-500.0,0.00059999,120]
[342974351,1732240234942,-500.0,0.00059999,120]
[342974352,1732240234951,-170.79161154,0.00059999,120]
[342974353,1732240234963,-324.49268818,0.00059999,120]
[342974354,1732240234973,-500.0,0.00059999,120]
[342974355,1732240234982,-176.37089523,0.00059999,120]
[342974356,1732240234991,-500.0,0.00059999,120]
[342974357,1732240235001,-426.72691515,0.00059999,120]